Workbook

Sheet Hoja1
A1: DIPEL | E1: =TODAY() -> 2025-12-12
A2: MAYORISTA FERRETERO
A3: DIRECCIÓN: Florida 1398. (1657) Loma Hermosa. Ptdo. Tres de Febrero. Provincia de Buenos Aires
A4: TELEFAX: 4769-3162, 4769-7393, 4841-3496, 2085-2305, FAX LAS 24 HORAS: 4841-3496
A5: CELULAR: 011-15-6954-1816, 011-15-5121-1817, 011-15-6954-1813
A6: WHATSAPP: | B6: 011-15-6954-1816 | C6: 011-15-5121-1817 | D6: 011-15-6954-1813
A7: MAIL: | B7: dipel@dipel.com.ar | C7: info@dipel.com.ar | D7: ventas@dipel.com.ar
A8: PÁGINA WEB: | B8: www.dipel.com.ar
A9: Consulte por descuentos extras.
A11: NOTA: Los precios de la presente lista están sujeto a variación sin previo aviso.
A13: MARGEN PARA PRECIO SUGERIDO, Modificable | E13: 0.55
A15: CODIGO | B15: DESCRIPCION | C15: MARCA | D15: RUBRO | E15: PRECIO SUGERIDO
A16: ='[1]87-0-14'!B2 -> A9C | B16: ='[1]87-0-14'!D2 -> ABRAZAD N 9 (53a77) | C16: ='[1]87-0-14'!E2 -> CARBIZ | D16: ='[1]87-0-14'!F2 -> ABRAZADERA AMERIC | E16: ='[1]87-0-14'!G2*(1+$E$13) -> 277.791
A17: ='[1]87-0-14'!B3 -> A10C | B17: ='[1]87-0-14'!D3 -> ABRAZAD N 10 (59a81) | C17: ='[1]87-0-14'!E3 -> CARBIZ | D17: ='[1]87-0-14'!F3 -> ABRAZADERA AMERIC | E17: ='[1]87-0-14'!G3*(1+$E$13) -> 290.3305
A18: ='[1]87-0-14'!B4 -> A11C | B18: ='[1]87-0-14'!D4 -> ABRAZAD N 11 (65a88) | C18: ='[1]87-0-14'!E4 -> CARBIZ | D18: ='[1]87-0-14'!F4 -> ABRAZADERA AMERIC | E18: ='[1]87-0-14'!G4*(1+$E$13) -> 307.799
A19: ='[1]87-0-14'!B5 -> A12CA | B19: ='[1]87-0-14'!D5 -> ABRAZAD N 12 (72a94) | C19: ='[1]87-0-14'!E5 -> CARBIZ | D19: ='[1]87-0-14'!F5 -> ABRAZADERA AMERIC | E19: ='[1]87-0-14'!G5*(1+$E$13) -> 321.997
A20: ='[1]87-0-14'!B6 -> A812D | B20: ='[1]87-0-14'!D6 -> ABRAZADE A/INOXID 8-12 | C20: ='[1]87-0-14'!E6 -> DAURO | D20: ='[1]87-0-14'!F6 -> ABRAZADERA | E20: ='[1]87-0-14'!G6*(1+$E$13) -> 629.331
A21: ='[1]87-0-14'!B7 -> A1016D | B21: ='[1]87-0-14'!D7 -> ABRAZADE A/INOXID 10-16 | C21: ='[1]87-0-14'!E7 -> DAURO | D21: ='[1]87-0-14'!F7 -> ABRAZADERA | E21: ='[1]87-0-14'!G7*(1+$E$13) -> 629.331
A22: ='[1]87-0-14'!B8 -> A1319D | B22: ='[1]87-0-14'!D8 -> ABRAZADE A/INOXID 13-19 | C22: ='[1]87-0-14'!E8 -> DAURO | D22: ='[1]87-0-14'!F8 -> ABRAZADERA | E22: ='[1]87-0-14'!G8*(1+$E$13) -> 629.331
A23: ='[1]87-0-14'!B9 -> A1625D | B23: ='[1]87-0-14'!D9 -> ABRAZADE A/INOXID 16-25 | C23: ='[1]87-0-14'!E9 -> DAURO | D23: ='[1]87-0-14'!F9 -> ABRAZADERA | E23: ='[1]87-0-14'!G9*(1+$E$13) -> 645.6835
A24: ='[1]87-0-14'!B10 -> A1832D | B24: ='[1]87-0-14'!D10 -> ABRAZADE A/INOXID 18-32 | C24: ='[1]87-0-14'!E10 -> DAURO | D24: ='[1]87-0-14'!F10 -> ABRAZADERA | E24: ='[1]87-0-14'!G10*(1+$E$13) -> 702.894
A25: ='[1]87-0-14'!B11 -> A2540D | B25: ='[1]87-0-14'!D11 -> ABRAZADE A/INOXID 25-40 | C25: ='[1]87-0-14'!E11 -> DAURO | D25: ='[1]87-0-14'!F11 -> ABRAZADERA | E25: ='[1]87-0-14'!G11*(1+$E$13) -> 751.936
A26: ='[1]87-0-14'!B12 -> A3244D | B26: ='[1]87-0-14'!D12 -> ABRAZADE A/INOXID 32-44 | C26: ='[1]87-0-14'!E12 -> DAURO | D26: ='[1]87-0-14'!F12 -> ABRAZADERA | E26: ='[1]87-0-14'!G12*(1+$E$13) -> 800.978
A27: ='[1]87-0-14'!B13 -> A4064D | B27: ='[1]87-0-14'!D13 -> ABRAZADE A/INOXID 40-64 | C27: ='[1]87-0-14'!E13 -> DAURO | D27: ='[1]87-0-14'!F13 -> ABRAZADERA | E27: ='[1]87-0-14'!G13*(1+$E$13) -> 882.7095
A28: ='[1]87-0-14'!B14 -> A5070D | B28: ='[1]87-0-14'!D14 -> ABRAZADE A/INOXID 50-70 | C28: ='[1]87-0-14'!E14 -> DAURO | D28: ='[1]87-0-14'!F14 -> ABRAZADERA | E28: ='[1]87-0-14'!G14*(1+$E$13) -> 997.1305
A29: ='[1]87-0-14'!B15 -> A6080D | B29: ='[1]87-0-14'!D15 -> ABRAZADE A/INOXID 60-80 | C29: ='[1]87-0-14'!E15 -> DAURO | D29: ='[1]87-0-14'!F15 -> ABRAZADERA | E29: ='[1]87-0-14'!G15*(1+$E$13) -> 1054.341
A30: ='[1]87-0-14'!B16 -> A7090D | B30: ='[1]87-0-14'!D16 -> ABRAZADE A/INOXID 70-90 | C30: ='[1]87-0-14'!E16 -> DAURO | D30: ='[1]87-0-14'!F16 -> ABRAZADERA | E30: ='[1]87-0-14'!G16*(1+$E$13) -> 1119.72
A31: ='[1]87-0-14'!B17 -> A80100D | B31: ='[1]87-0-14'!D17 -> ABRAZADE A/INOXID 80-100 | C31: ='[1]87-0-14'!E17 -> DAURO | D31: ='[1]87-0-14'!F17 -> ABRAZADERA | E31: ='[1]87-0-14'!G17*(1+$E$13) -> 1176.9305
A32: ='[1]87-0-14'!B18 -> A812C | B32: ='[1]87-0-14'!D18 -> ABRAZADERA A/IN 8 - 12 | C32: ='[1]87-0-14'!E18 -> CRECCHIO | D32: ='[1]87-0-14'!F18 -> ABRAZADERA | E32: ='[1]87-0-14'!G18*(1+$E$13) -> 794.7315
A33: ='[1]87-0-14'!B19 -> A1016C | B33: ='[1]87-0-14'!D19 -> ABRAZADERA A/IN 10 - 16 | C33: ='[1]87-0-14'!E19 -> CRECCHIO | D33: ='[1]87-0-14'!F19 -> ABRAZADERA | E33: ='[1]87-0-14'!G19*(1+$E$13) -> 849.2605
A34: ='[1]87-0-14'!B20 -> A1220C | B34: ='[1]87-0-14'!D20 -> ABRAZADERA A/IN 12 - 20 | C34: ='[1]87-0-14'!E20 -> CRECCHIO | D34: ='[1]87-0-14'!F20 -> ABRAZADERA | E34: ='[1]87-0-14'!G20*(1+$E$13) -> 849.2605
A35: ='[1]87-0-14'!B21 -> A1625C | B35: ='[1]87-0-14'!D21 -> ABRAZADERA A/IN 16 - 25 | C35: ='[1]87-0-14'!E21 -> CRECCHIO | D35: ='[1]87-0-14'!F21 -> ABRAZADERA | E35: ='[1]87-0-14'!G21*(1+$E$13) -> 863.164
A36: ='[1]87-0-14'!B22 -> A2032C | B36: ='[1]87-0-14'!D22 -> ABRAZADERA A/IN 20 - 32 | C36: ='[1]87-0-14'!E22 -> CRECCHIO | D36: ='[1]87-0-14'!F22 -> ABRAZADERA | E36: ='[1]87-0-14'!G22*(1+$E$13) -> 882.973
A37: ='[1]87-0-14'!B23 -> A2540C | B37: ='[1]87-0-14'!D23 -> ABRAZADERA A/IN 25 - 40 | C37: ='[1]87-0-14'!E23 -> CRECCHIO | D37: ='[1]87-0-14'!F23 -> ABRAZADERA | E37: ='[1]87-0-14'!G23*(1+$E$13) -> 943.33
A38: ='[1]87-0-14'!B24 -> A3250C | B38: ='[1]87-0-14'!D24 -> ABRAZADERA A/IN 32 - 50 | C38: ='[1]87-0-14'!E24 -> CRECCHIO | D38: ='[1]87-0-14'!F24 -> ABRAZADERA | E38: ='[1]87-0-14'!G24*(1+$E$13) -> 1015.405
A39: ='[1]87-0-14'!B25 -> A4060C | B39: ='[1]87-0-14'!D25 -> ABRAZADERA A/IN 40 - 60 | C39: ='[1]87-0-14'!E25 -> CRECCHIO | D39: ='[1]87-0-14'!F25 -> ABRAZADERA | E39: ='[1]87-0-14'!G25*(1+$E$13) -> 1087.3405
A40: ='[1]87-0-14'!B26 -> A5070C | B40: ='[1]87-0-14'!D26 -> ABRAZADERA A/IN 50 - 70 | C40: ='[1]87-0-14'!E26 -> CRECCHIO | D40: ='[1]87-0-14'!F26 -> ABRAZADERA | E40: ='[1]87-0-14'!G26*(1+$E$13) -> 1182.619
A41: ='[1]87-0-14'!B27 -> A6080C | B41: ='[1]87-0-14'!D27 -> ABRAZADERA A/IN 60 - 80 | C41: ='[1]87-0-14'!E27 -> CRECCHIO | D41: ='[1]87-0-14'!F27 -> ABRAZADERA | E41: ='[1]87-0-14'!G27*(1+$E$13) -> 1236.2645
A42: ='[1]87-0-14'!B28 -> A7090C | B42: ='[1]87-0-14'!D28 -> ABRAZADERA A/IN 70 - 90 | C42: ='[1]87-0-14'!E28 -> CRECCHIO | D42: ='[1]87-0-14'!F28 -> ABRAZADERA | E42: ='[1]87-0-14'!G28*(1+$E$13) -> 1310.494
A43: ='[1]87-0-14'!B29 -> A80100C | B43: ='[1]87-0-14'!D29 -> ABRAZADERA A/IN 80 - 100 | C43: ='[1]87-0-14'!E29 -> CRECCHIO | D43: ='[1]87-0-14'!F29 -> ABRAZADERA | E43: ='[1]87-0-14'!G29*(1+$E$13) -> 1371.0525
A44: ='[1]87-0-14'!B30 -> ANP | B44: ='[1]87-0-14'!D30 -> ACCESORI NUECES UNIVERSAL | C44: ='[1]87-0-14'!E30 -> PRIVE | D44: ='[1]87-0-14'!F30 -> ACCESORIOS | E44: ='[1]87-0-14'!G30*(1+$E$13) -> 2369.9965
A45: ='[1]87-0-14'!B31 -> ANPP | B45: ='[1]87-0-14'!D31 -> ACCESORIO NUEZ Y PESTILLO | C45: ='[1]87-0-14'!E31 -> PRIVE | D45: ='[1]87-0-14'!F31 -> ACCESORIOS | E45: ='[1]87-0-14'!G31*(1+$E$13) -> 420.794
A46: ='[1]87-0-14'!B32 -> APP | B46: ='[1]87-0-14'!D32 -> ACCESORIO PESTILLO UNIVER | C46: ='[1]87-0-14'!E32 -> PRIVE | D46: ='[1]87-0-14'!F32 -> ACCESORIOS | E46: ='[1]87-0-14'!G32*(1+$E$13) -> 3270.1435
A47: ='[1]87-0-14'!B33 -> AS5T | B47: ='[1]87-0-14'!D33 -> ACEITE SOLUBLE #5 Lts# | C47: ='[1]87-0-14'!E33 -> TF3 | D47: ='[1]87-0-14'!F33 -> ACEITE SOLUBLE | E47: ='[1]87-0-14'!G33*(1+$E$13) -> 60005.1035
A48: ='[1]87-0-14'!B34 -> AS1T | B48: ='[1]87-0-14'!D34 -> ACEITE SOLUBLE 1 litro | C48: ='[1]87-0-14'!E34 -> TF3 | D48: ='[1]87-0-14'!F34 -> ACEITE SOLUBLE | E48: ='[1]87-0-14'!G34*(1+$E$13) -> 13010.204
A49: ='[1]87-0-14'!B35 -> AMT | B49: ='[1]87-0-14'!D35 -> ACEITER MULTIUSO 100 | C49: ='[1]87-0-14'!E35 -> TF3 | D49: ='[1]87-0-14'!F35 -> ACEITE MULTIUSO | E49: ='[1]87-0-14'!G35*(1+$E$13) -> 1264.8775
A50: ='[1]87-0-14'!B36 -> ACR3412D | B50: ='[1]87-0-14'!D36 -> ACO COM REDUC T/M 3/4a1/2 | C50: ='[1]87-0-14'!E36 -> DUKE | D50: ='[1]87-0-14'!F36 -> ACOPLE COMPRESION | E50: ='[1]87-0-14'!G36*(1+$E$13) -> 4134.78
A51: ='[1]87-0-14'!B37 -> ACV12D | B51: ='[1]87-0-14'!D37 -> ACO COMP C/VALV T/MEC 1/2 | C51: ='[1]87-0-14'!E37 -> DUKE | D51: ='[1]87-0-14'!F37 -> ACOPLE COMPRESION | E51: ='[1]87-0-14'!G37*(1+$E$13) -> 6579.1765
A52: ='[1]87-0-14'!B38 -> ACV34D | B52: ='[1]87-0-14'!D38 -> ACO COMP C/VALV T/MEC 3/4 | C52: ='[1]87-0-14'!E38 -> DUKE | D52: ='[1]87-0-14'!F38 -> ACOPLE COMPRESION | E52: ='[1]87-0-14'!G38*(1+$E$13) -> 7764.5545
A53: ='[1]87-0-14'!B39 -> ACR134D | B53: ='[1]87-0-14'!D39 -> ACO COMPR REDUCCION 1a3/4 | C53: ='[1]87-0-14'!E39 -> DUKE | D53: ='[1]87-0-14'!F39 -> ACOPLE COMPRESION | E53: ='[1]87-0-14'!G39*(1+$E$13) -> 4906.4165
A54: ='[1]87-0-14'!B40 -> ACTR3412 | B54: ='[1]87-0-14'!D40 -> ACOP COMP #T# RED 3/4a1/2 | C54: ='[1]87-0-14'!E40 -> DUKE | D54: ='[1]87-0-14'!F40 -> ACOPLE COMPRESION | E54: ='[1]87-0-14'!G40*(1+$E$13) -> 5555.417
A55: ='[1]87-0-14'!B41 -> ACC12D | B55: ='[1]87-0-14'!D41 -> ACOP COMP CODO TR/MEC 1/2 | C55: ='[1]87-0-14'!E41 -> DUKE | D55: ='[1]87-0-14'!F41 -> ACOPLE COMPRESION | E55: ='[1]87-0-14'!G41*(1+$E$13) -> 3475.7045
A56: ='[1]87-0-14'!B42 -> ACC34D | B56: ='[1]87-0-14'!D42 -> ACOP COMP CODO TR/MEC 3/4 | C56: ='[1]87-0-14'!E42 -> DUKE | D56: ='[1]87-0-14'!F42 -> ACOPLE COMPRESION | E56: ='[1]87-0-14'!G42*(1+$E$13) -> 4297.034
A57: ='[1]87-0-14'!B43 -> ACT12D | B57: ='[1]87-0-14'!D43 -> ACOP COMPR TR/MEC #T# 1/2 | C57: ='[1]87-0-14'!E43 -> DUKE | D57: ='[1]87-0-14'!F43 -> ACOPLE COMPRESION | E57: ='[1]87-0-14'!G43*(1+$E$13) -> 4937.866
A58: ='[1]87-0-14'!B44 -> ACT34D | B58: ='[1]87-0-14'!D44 -> ACOP COMPR TR/MEC #T# 3/4 | C58: ='[1]87-0-14'!E44 -> DUKE | D58: ='[1]87-0-14'!F44 -> ACOPLE COMPRESION | E58: ='[1]87-0-14'!G44*(1+$E$13) -> 5555.417
A59: ='[1]87-0-14'!B45 -> AC114D | B59: ='[1]87-0-14'!D45 -> ACOPL COMPRESI 1"1/4 | C59: ='[1]87-0-14'!E45 -> DUKE | D59: ='[1]87-0-14'!F45 -> ACOPLE COMPRESION | E59: ='[1]87-0-14'!G45*(1+$E$13) -> 12377.6645
A60: ='[1]87-0-14'!B46 -> AC12D | B60: ='[1]87-0-14'!D46 -> ACOPLE COMPRESIO 1/2 | C60: ='[1]87-0-14'!E46 -> DUKE | D60: ='[1]87-0-14'!F46 -> ACOPLE COMPRESION | E60: ='[1]87-0-14'!G46*(1+$E$13) -> 2896.3145
A61: ='[1]87-0-14'!B47 -> AC34D | B61: ='[1]87-0-14'!D47 -> ACOPLE COMPRESIO 3/4 | C61: ='[1]87-0-14'!E47 -> DUKE | D61: ='[1]87-0-14'!F47 -> ACOPLE COMPRESION | E61: ='[1]87-0-14'!G47*(1+$E$13) -> 3580.345
A62: ='[1]87-0-14'!B48 -> AC1D | B62: ='[1]87-0-14'!D48 -> ACOPLE COMPRESION 1" | C62: ='[1]87-0-14'!E48 -> DUKE | D62: ='[1]87-0-14'!F48 -> ACOPLE COMPRESION | E62: ='[1]87-0-14'!G48*(1+$E$13) -> 4947.6775
A63: ='[1]87-0-14'!B49 -> AC2D | B63: ='[1]87-0-14'!D49 -> ACOPLE COMPRESION 2" | C63: ='[1]87-0-14'!E49 -> DUKE | D63: ='[1]87-0-14'!F49 -> ACOPLE COMPRESION | E63: ='[1]87-0-14'!G49*(1+$E$13) -> 18989.019
A64: ='[1]87-0-14'!B50 -> AS | B64: ='[1]87-0-14'!D50 -> ADAPTADOR CARRETEL ALAMBR | C64: ='[1]87-0-14'!E50 -> SIDERAL | D64: ='[1]87-0-14'!F50 -> ADAPTADOR | E64: ='[1]87-0-14'!G50*(1+$E$13) -> 25274.455
A65: ='[1]87-0-14'!B51 -> ASA | B65: ='[1]87-0-14'!D51 -> ADAPTADOR SOPLETE | C65: ='[1]87-0-14'!E51 -> ALIGAS | D65: ='[1]87-0-14'!F51 -> ADAPTADOR SOPLETE | E65: ='[1]87-0-14'!G51*(1+$E$13) -> 4348.804
A66: ='[1]87-0-14'!B52 -> PEG220F | B66: ='[1]87-0-14'!D52 -> ADHESIVO DE MONTAJE 220 | C66: ='[1]87-0-14'!E52 -> FORTEX | D66: ='[1]87-0-14'!F52 -> ADHESIVO MONTAJE | E66: ='[1]87-0-14'!G52*(1+$E$13) -> 4911.4385
A67: ='[1]87-0-14'!B53 -> PEG320F | B67: ='[1]87-0-14'!D53 -> ADHESIVO DE MONTAJE 320 | C67: ='[1]87-0-14'!E53 -> FORTEX | D67: ='[1]87-0-14'!F53 -> ADHESIVO MONTAJE | E67: ='[1]87-0-14'!G53*(1+$E$13) -> 7490.437
A68: ='[1]87-0-14'!B54 -> AP50D | B68: ='[1]87-0-14'!D54 -> ADHESIVO P/PVC 50cc | C68: ='[1]87-0-14'!E54 -> DUKE | D68: ='[1]87-0-14'!F54 -> ADHESIVO P/PVC | E68: ='[1]87-0-14'!G54*(1+$E$13) -> 3946.7805
A69: ='[1]87-0-14'!B55 -> AP100D | B69: ='[1]87-0-14'!D55 -> ADHESIVO P/PVC 100cc | C69: ='[1]87-0-14'!E55 -> DUKE | D69: ='[1]87-0-14'!F55 -> ADHESIVO P/PVC | E69: ='[1]87-0-14'!G55*(1+$E$13) -> 5922.5345
A70: ='[1]87-0-14'!B56 -> AP250D | B70: ='[1]87-0-14'!D56 -> ADHESIVO P/PVC 250cc | C70: ='[1]87-0-14'!E56 -> DUKE | D70: ='[1]87-0-14'!F56 -> ADHESIVO P/PVC | E70: ='[1]87-0-14'!G56*(1+$E$13) -> 12462.7905
A71: ='[1]87-0-14'!B57 -> AP500D | B71: ='[1]87-0-14'!D57 -> ADHESIVO P/PVC 500cc | C71: ='[1]87-0-14'!E57 -> DUKE | D71: ='[1]87-0-14'!F57 -> ADHESIVO P/PVC | E71: ='[1]87-0-14'!G57*(1+$E$13) -> 21358.969
A72: ='[1]87-0-14'!B58 -> AP60T | B72: ='[1]87-0-14'!D58 -> ADHESIVO PVC 60 CC | C72: ='[1]87-0-14'!E58 -> TF3 | D72: ='[1]87-0-14'!F58 -> ADHESIVO PVC | E72: ='[1]87-0-14'!G58*(1+$E$13) -> 2302.928
A73: ='[1]87-0-14'!B59 -> AP110T | B73: ='[1]87-0-14'!D59 -> ADHESIVO PVC 110 CC | C73: ='[1]87-0-14'!E59 -> TF3 | D73: ='[1]87-0-14'!F59 -> ADHESIVO PVC | E73: ='[1]87-0-14'!G59*(1+$E$13) -> 3914.0135
A74: ='[1]87-0-14'!B60 -> AP250T | B74: ='[1]87-0-14'!D60 -> ADHESIVO PVC 250 CC | C74: ='[1]87-0-14'!E60 -> TF3 | D74: ='[1]87-0-14'!F60 -> ADHESIVO PVC | E74: ='[1]87-0-14'!G60*(1+$E$13) -> 8403.9295
A75: ='[1]87-0-14'!B61 -> AGM | B75: ='[1]87-0-14'!D61 -> ADHESIVO T/LA GOTITA 3grs | C75: ='[1]87-0-14'!E61 -> MACAO | D75: ='[1]87-0-14'!F61 -> CANDADO | E75: ='[1]87-0-14'!G61*(1+$E$13) -> 1179.86
A76: ='[1]87-0-14'!B62 -> ANA14E | B76: ='[1]87-0-14'!D62 -> ALAMB NEGRO ATADO 14 | C76: ='[1]87-0-14'!E62 -> ACINDAR | D76: ='[1]87-0-14'!F62 -> ALAMBRE NEGRO ATA | E76: ='[1]87-0-14'!G62*(1+$E$13) -> 9579.155
A77: ='[1]87-0-14'!B63 -> ANA17E | B77: ='[1]87-0-14'!D63 -> ALAMB NEGRO ATADO 17 | C77: ='[1]87-0-14'!E63 -> ACINDAR | D77: ='[1]87-0-14'!F63 -> ALAMBRE NEGRO ATA | E77: ='[1]87-0-14'!G63*(1+$E$13) -> 9394.8445
A78: ='[1]87-0-14'!B64 -> AGA10A | B78: ='[1]87-0-14'!D64 -> ALAMBR GALV ATADO 10 | C78: ='[1]87-0-14'!E64 -> ACINDAR | D78: ='[1]87-0-14'!F64 -> ALAMBR GALV ATADO | E78: ='[1]87-0-14'!G64*(1+$E$13) -> 9320.8475
A79: ='[1]87-0-14'!B65 -> AGA12A | B79: ='[1]87-0-14'!D65 -> ALAMBR GALV ATADO 12 | C79: ='[1]87-0-14'!E65 -> ACINDAR | D79: ='[1]87-0-14'!F65 -> ALAMBR GALV ATADO | E79: ='[1]87-0-14'!G65*(1+$E$13) -> 8329.3125
A80: ='[1]87-0-14'!B66 -> AGA14A | B80: ='[1]87-0-14'!D66 -> ALAMBR GALV ATADO 14 | C80: ='[1]87-0-14'!E66 -> ACINDAR | D80: ='[1]87-0-14'!F66 -> ALAMBR GALV ATADO | E80: ='[1]87-0-14'!G66*(1+$E$13) -> 8872.6495
A81: ='[1]87-0-14'!B67 -> AGA16A | B81: ='[1]87-0-14'!D67 -> ALAMBR GALV ATADO 16 | C81: ='[1]87-0-14'!E67 -> ACINDAR | D81: ='[1]87-0-14'!F67 -> ALAMBR GALV ATADO | E81: ='[1]87-0-14'!G67*(1+$E$13) -> 9363.1315
A82: ='[1]87-0-14'!B68 -> ARRT | B82: ='[1]87-0-14'!D68 -> ALAMBR REVESTID ROPA PLAS | C82: ='[1]87-0-14'!E68 -> TENSIL | D82: ='[1]87-0-14'!F68 -> ALAMBRE REVESTIDO | E82: ='[1]87-0-14'!G68*(1+$E$13) -> 385.5005
A83: ='[1]87-0-14'!B69 -> AEA | B83: ='[1]87-0-14'!D69 -> ALAMBRE ENFARDAR 15 1/2 | C83: ='[1]87-0-14'!E69 -> ACINDAR | D83: ='[1]87-0-14'!F69 -> ALMBRE ENFARDAR | E83: ='[1]87-0-14'!G69*(1+$E$13) -> 11993.9155
A84: ='[1]87-0-14'!B70 -> AEPA | B84: ='[1]87-0-14'!D70 -> ALAMBRE ESPIRAL PLASTIFIC | C84: ='[1]87-0-14'!E70 -> ALEX | D84: ='[1]87-0-14'!F70 -> ALAMBRE ESPIRAL | E84: ='[1]87-0-14'!G70*(1+$E$13) -> 1848.2355
A85: ='[1]87-0-14'!B71 -> AG10 | B85: ='[1]87-0-14'!D71 -> ALAMBRE GALV N 10 GRANEL | C85: ='[1]87-0-14'!E71 -> ACINDAR | D85: ='[1]87-0-14'!F71 -> ALAMBRE GALV. | E85: ='[1]87-0-14'!G71*(1+$E$13) -> 8091.372
A86: ='[1]87-0-14'!B72 -> AG12 | B86: ='[1]87-0-14'!D72 -> ALAMBRE GALV N 12 GRANEL | C86: ='[1]87-0-14'!E72 -> ACINDAR | D86: ='[1]87-0-14'!F72 -> ALAMBRE GALV. | E86: ='[1]87-0-14'!G72*(1+$E$13) -> 8059.3645
A87: ='[1]87-0-14'!B73 -> AG14 | B87: ='[1]87-0-14'!D73 -> ALAMBRE GALV N 14 GRANEL | C87: ='[1]87-0-14'!E73 -> ACINDAR | D87: ='[1]87-0-14'!F73 -> ALAMBRE GALV. | E87: ='[1]87-0-14'!G73*(1+$E$13) -> 8576.8475
A88: ='[1]87-0-14'!B74 -> AG16 | B88: ='[1]87-0-14'!D74 -> ALAMBRE GALV N 16 GRANEL | C88: ='[1]87-0-14'!E74 -> ACINDAR | D88: ='[1]87-0-14'!F74 -> ALAMBRE GALV. | E88: ='[1]87-0-14'!G74*(1+$E$13) -> 9046.8075
A89: ='[1]87-0-14'!B75 -> ANA16E | B89: ='[1]87-0-14'!D75 -> ALAMBRE NEGRO ATADO #16# | C89: ='[1]87-0-14'!E75 -> ACINDAR | D89: ='[1]87-0-14'!F75 -> ALAMBRE NEGRO ATA | E89: ='[1]87-0-14'!G75*(1+$E$13) -> 8883.639
A90: ='[1]87-0-14'!B76 -> AN9E | B90: ='[1]87-0-14'!D76 -> ALAMBRE NEGRO N 9 | C90: ='[1]87-0-14'!E76 -> ACINDAR | D90: ='[1]87-0-14'!F76 -> ALAMBRE NEGRO | E90: ='[1]87-0-14'!G76*(1+$E$13) -> 8672.963
A91: ='[1]87-0-14'!B77 -> AN12E | B91: ='[1]87-0-14'!D77 -> ALAMBRE NEGRO N 12 GRANEL | C91: ='[1]87-0-14'!E77 -> ACINDAR | D91: ='[1]87-0-14'!F77 -> ALAMBRE NEGRO | E91: ='[1]87-0-14'!G77*(1+$E$13) -> 8997.1765
A92: ='[1]87-0-14'!B78 -> AN14 | B92: ='[1]87-0-14'!D78 -> ALAMBRE NEGRO N 14 GRANEL | C92: ='[1]87-0-14'!E78 -> ACINDAR | D92: ='[1]87-0-14'!F78 -> ALAMBRE NEGRO | E92: ='[1]87-0-14'!G78*(1+$E$13) -> 8999.827
A93: ='[1]87-0-14'!B79 -> AN16 | B93: ='[1]87-0-14'!D79 -> ALAMBRE NEGRO N 16 GRANEL | C93: ='[1]87-0-14'!E79 -> ACINDAR | D93: ='[1]87-0-14'!F79 -> ALAMBRE NEGRO | E93: ='[1]87-0-14'!G79*(1+$E$13) -> 8660.9815
A94: ='[1]87-0-14'!B80 -> AN17E | B94: ='[1]87-0-14'!D80 -> ALAMBRE NEGRO N 17 GRANEL | C94: ='[1]87-0-14'!E80 -> ACINDAR | D94: ='[1]87-0-14'!F80 -> ALAMBRE NEGRO | E94: ='[1]87-0-14'!G80*(1+$E$13) -> 9261.064
A95: ='[1]87-0-14'!B81 -> AS090S | B95: ='[1]87-0-14'!D81 -> ALAMBRE P/SOLDAD MIG 0,90 | C95: ='[1]87-0-14'!E81 -> SIDERAL | D95: ='[1]87-0-14'!F81 -> ALAMBRE P/SOLDADU | E95: ='[1]87-0-14'!G81*(1+$E$13) -> 9380.9875
A96: ='[1]87-0-14'!B82 -> AS120S | B96: ='[1]87-0-14'!D82 -> ALAMBRE P/SOLDAD MIG 1,20 | C96: ='[1]87-0-14'!E82 -> SIDERAL | D96: ='[1]87-0-14'!F82 -> ALAMBRE P/SOLDADU | E96: ='[1]87-0-14'!G82*(1+$E$13) -> 8298.7775
A97: ='[1]87-0-14'!B83 -> AS080S | B97: ='[1]87-0-14'!D83 -> ALAMBRE P/SOLDAR MIG 0,80 | C97: ='[1]87-0-14'!E83 -> SIDERAL | D97: ='[1]87-0-14'!F83 -> ALAMBRE P/SOLDADU | E97: ='[1]87-0-14'!G83*(1+$E$13) -> 8527.046
A98: ='[1]87-0-14'!B84 -> AIAK | B98: ='[1]87-0-14'!D84 -> ALCOHO ISOPROP AERO "440" | C98: ='[1]87-0-14'!E84 -> KUWAIT | D98: ='[1]87-0-14'!F84 -> ALCOHOL ISOPROPIL | E98: ='[1]87-0-14'!G84*(1+$E$13) -> 6925.958
A99: ='[1]87-0-14'!B85 -> AA75K | B99: ='[1]87-0-14'!D85 -> ALCOHOL AEROS 75 #NOGALY# | C99: ='[1]87-0-14'!E85 -> KUWAIT | D99: ='[1]87-0-14'!F85 -> ESMALTE AEROSOL | E99: ='[1]87-0-14'!G85*(1+$E$13) -> 5163.8095
A100: ='[1]87-0-14'!B86 -> AG230K | B100: ='[1]87-0-14'!D86 -> ALCOHOL GEL 230 #NOGALY# | C100: ='[1]87-0-14'!E86 -> KUWAIT | D100: ='[1]87-0-14'!F86 -> ALCOHOL ISOPROPIL | E100: ='[1]87-0-14'!G86*(1+$E$13) -> 5163.8095
A101: ='[1]87-0-14'!B87 -> ACO5C | B101: ='[1]87-0-14'!D87 -> ALICATE CORTE OBLICUO 5" | C101: ='[1]87-0-14'!E87 -> METZ | D101: ='[1]87-0-14'!F87 -> ALICATE C/OBL | E101: ='[1]87-0-14'!G87*(1+$E$13) -> 10131.0325
A102: ='[1]87-0-14'!B88 -> ACO6C | B102: ='[1]87-0-14'!D88 -> ALICATE CORTE OBLICUO 6" | C102: ='[1]87-0-14'!E88 -> METZ | D102: ='[1]87-0-14'!F88 -> ALICATE C/OBL | E102: ='[1]87-0-14'!G88*(1+$E$13) -> 13523.44
A103: ='[1]87-0-14'!B89 -> ACO8C | B103: ='[1]87-0-14'!D89 -> ALICATE CORTE OBLICUO 8" | C103: ='[1]87-0-14'!E89 -> METZ | D103: ='[1]87-0-14'!F89 -> ALICATE C/OBL | E103: ='[1]87-0-14'!G89*(1+$E$13) -> 17835.013
A104: ='[1]87-0-14'!B90 -> AMC6C | B104: ='[1]87-0-14'!D90 -> ALICATE MEDIA CANA C/A 6" | C104: ='[1]87-0-14'!E90 -> METZ | D104: ='[1]87-0-14'!F90 -> ALICATE | E104: ='[1]87-0-14'!G90*(1+$E$13) -> 12219.797
A105: ='[1]87-0-14'!B91 -> AMC8C | B105: ='[1]87-0-14'!D91 -> ALICATE MEDIA CANA C/A 8" | C105: ='[1]87-0-14'!E91 -> METZ | D105: ='[1]87-0-14'!F91 -> ALICATE | E105: ='[1]87-0-14'!G91*(1+$E$13) -> 18408.0635
A106: ='[1]87-0-14'!B92 -> APC6C | B106: ='[1]87-0-14'!D92 -> ALICATE PUNTA CHATA 6" | C106: ='[1]87-0-14'!E92 -> METZ | D106: ='[1]87-0-14'!F92 -> ALICATE | E106: ='[1]87-0-14'!G92*(1+$E$13) -> 12206.188
A107: ='[1]87-0-14'!B93 -> APC8C | B107: ='[1]87-0-14'!D93 -> ALICATE PUNTA CHATA 8" | C107: ='[1]87-0-14'!E93 -> METZ | D107: ='[1]87-0-14'!F93 -> ALICATE | E107: ='[1]87-0-14'!G93*(1+$E$13) -> 19572.532
A108: ='[1]87-0-14'!B94 -> AU6C | B108: ='[1]87-0-14'!D94 -> ALICATE UNIVERSAL 6" | C108: ='[1]87-0-14'!E94 -> METZ | D108: ='[1]87-0-14'!F94 -> ALICATE UNIV | E108: ='[1]87-0-14'!G94*(1+$E$13) -> 14667.9445
A109: ='[1]87-0-14'!B95 -> AU7C | B109: ='[1]87-0-14'!D95 -> ALICATE UNIVERSAL 7" | C109: ='[1]87-0-14'!E95 -> METZ | D109: ='[1]87-0-14'!F95 -> ALICATE | E109: ='[1]87-0-14'!G95*(1+$E$13) -> 17435.299
A110: ='[1]87-0-14'!B96 -> AU8C | B110: ='[1]87-0-14'!D96 -> ALICATE UNIVERSAL 8" | C110: ='[1]87-0-14'!E96 -> METZ | D110: ='[1]87-0-14'!F96 -> ALICATE UNIV | E110: ='[1]87-0-14'!G96*(1+$E$13) -> 20943.693
A111: ='[1]87-0-14'!B97 -> ATAAK | B111: ='[1]87-0-14'!D97 -> ALTA TEMP AERO Alumi | C111: ='[1]87-0-14'!E97 -> KUWAIT | D111: ='[1]87-0-14'!F97 -> ALTA TEMPERATURA | E111: ='[1]87-0-14'!G97*(1+$E$13) -> 9175.7675
A112: ='[1]87-0-14'!B98 -> ATANK | B112: ='[1]87-0-14'!D98 -> ALTA TEMP AERO NEGRO | C112: ='[1]87-0-14'!E98 -> KUWAIT | D112: ='[1]87-0-14'!F98 -> ALTA TEMPERATURA | E112: ='[1]87-0-14'!G98*(1+$E$13) -> 10055.3615
A113: ='[1]87-0-14'!B99 -> A440ATNK | B113: ='[1]87-0-14'!D99 -> ALTA TEMPE 440 NEGRO | C113: ='[1]87-0-14'!E99 -> KUWAIT | D113: ='[1]87-0-14'!F99 -> ALTA TEMPERATURA | E113: ='[1]87-0-14'!G99*(1+$E$13) -> 15826.12
A114: ='[1]87-0-14'!B100 -> A440AAK | B114: ='[1]87-0-14'!D100 -> ALTA TEMPERA 440 ALUMINIO | C114: ='[1]87-0-14'!E100 -> KUWAIT | D114: ='[1]87-0-14'!F100 -> ALTA TEMPERATURA | E114: ='[1]87-0-14'!G100*(1+$E$13) -> 12875.4935
A115: ='[1]87-0-14'!B101 -> A1EV | B115: ='[1]87-0-14'!D101 -> ANAFE C/R 1 HO ENVAS | C115: ='[1]87-0-14'!E101 -> VITAL GAS | D115: ='[1]87-0-14'!F101 -> ANAFE | E115: ='[1]87-0-14'!G101*(1+$E$13) -> 45627.071
A116: ='[1]87-0-14'!B102 -> A1NV | B116: ='[1]87-0-14'!D102 -> ANAFE C/R 1 HO NATUR | C116: ='[1]87-0-14'!E102 -> VITAL GAS | D116: ='[1]87-0-14'!F102 -> ANAFE | E116: ='[1]87-0-14'!G102*(1+$E$13) -> 45627.071
A117: ='[1]87-0-14'!B103 -> A2EV | B117: ='[1]87-0-14'!D103 -> ANAFE C/R 2 HO ENVAS | C117: ='[1]87-0-14'!E103 -> VITAL GAS | D117: ='[1]87-0-14'!F103 -> ANAFE | E117: ='[1]87-0-14'!G103*(1+$E$13) -> 67188.5785
A118: ='[1]87-0-14'!B104 -> A2NV | B118: ='[1]87-0-14'!D104 -> ANAFE C/R 2 HO NATUR | C118: ='[1]87-0-14'!E104 -> VITAL GAS | D118: ='[1]87-0-14'!F104 -> ANAFE | E118: ='[1]87-0-14'!G104*(1+$E$13) -> 67188.5785
A119: ='[1]87-0-14'!B105 -> A250D | B119: ='[1]87-0-14'!D105 -> ANDAMIO TUBULAR 2,50mts | C119: ='[1]87-0-14'!E105 -> DUROLL | D119: ='[1]87-0-14'!F105 -> ANDAMIO | E119: ='[1]87-0-14'!G105*(1+$E$13) -> 402822.308
A120: ='[1]87-0-14'!B106 -> A300D | B120: ='[1]87-0-14'!D106 -> ANDAMIO TUBULAR 3,00 mts | C120: ='[1]87-0-14'!E106 -> DUROLL | D120: ='[1]87-0-14'!F106 -> ANDAMIO | E120: ='[1]87-0-14'!G106*(1+$E$13) -> 444384.8295
A121: ='[1]87-0-14'!B107 -> AA440K | B121: ='[1]87-0-14'!D107 -> ANTIOXIDO AERO "440" | C121: ='[1]87-0-14'!E107 -> KUWAIT | D121: ='[1]87-0-14'!F107 -> ANTIOXIDO AEROSOL | E121: ='[1]87-0-14'!G107*(1+$E$13) -> 7939.751
A122: ='[1]87-0-14'!B108 -> AAK | B122: ='[1]87-0-14'!D108 -> ANTIOXIDO AEROSOL | C122: ='[1]87-0-14'!E108 -> KUWAIT | D122: ='[1]87-0-14'!F108 -> ANTIOXIDO AEROSOL | E122: ='[1]87-0-14'!G108*(1+$E$13) -> 5449.149
A123: ='[1]87-0-14'!B109 -> A12P | B123: ='[1]87-0-14'!D109 -> ANTIOXIDO AL CROMATO 1/2l | C123: ='[1]87-0-14'!E109 -> PREMIER | D123: ='[1]87-0-14'!F109 -> ANTIOXIDO | E123: ='[1]87-0-14'!G109*(1+$E$13) -> 9563.221
A124: ='[1]87-0-14'!B110 -> A14P | B124: ='[1]87-0-14'!D110 -> ANTIOXIDO AL CROMATO 1/4l | C124: ='[1]87-0-14'!E110 -> PREMIER | D124: ='[1]87-0-14'!F110 -> ANTIOXIDO | E124: ='[1]87-0-14'!G110*(1+$E$13) -> 9563.221
A125: ='[1]87-0-14'!B111 -> A1P | B125: ='[1]87-0-14'!D111 -> ANTIOXIDO AL CROMATO 1lt | C125: ='[1]87-0-14'!E111 -> PREMIER | D125: ='[1]87-0-14'!F111 -> ANTIOXIDO | E125: ='[1]87-0-14'!G111*(1+$E$13) -> 16145.916
A126: ='[1]87-0-14'!B112 -> A200P | B126: ='[1]87-0-14'!D112 -> ANTIOXIDO AL CROMATO 200l | C126: ='[1]87-0-14'!E112 -> PREMIER | D126: ='[1]87-0-14'!F112 -> ANTIOXIDO | E126: ='[1]87-0-14'!G112*(1+$E$13) -> 2847437.343
A127: ='[1]87-0-14'!B113 -> A20P | B127: ='[1]87-0-14'!D113 -> ANTIOXIDO AL CROMATO 20l | C127: ='[1]87-0-14'!E113 -> PREMIER | D127: ='[1]87-0-14'!F113 -> ANTIOXIDO | E127: ='[1]87-0-14'!G113*(1+$E$13) -> 284743.7265
A128: ='[1]87-0-14'!B114 -> A4P | B128: ='[1]87-0-14'!D114 -> ANTIOXIDO AL CROMATO 4lt | C128: ='[1]87-0-14'!E114 -> PREMIER | D128: ='[1]87-0-14'!F114 -> ANTIOXIDO | E128: ='[1]87-0-14'!G114*(1+$E$13) -> 60567.2265
A129: ='[1]87-0-14'!B115 -> A78RG | B129: ='[1]87-0-14'!D115 -> ARAND ZINC (x2) 7/8" | C129: ='[1]87-0-14'!E115 -> BIANCO | D129: ='[1]87-0-14'!F115 -> ARANDELA | E129: ='[1]87-0-14'!G115*(1+$E$13) -> 249.395
A130: ='[1]87-0-14'!B116 -> A916RG | B130: ='[1]87-0-14'!D116 -> ARAND ZINC (x2) 9/16 | C130: ='[1]87-0-14'!E116 -> BIANCO | D130: ='[1]87-0-14'!F116 -> ARANDELA | E130: ='[1]87-0-14'!G116*(1+$E$13) -> 249.395
A131: ='[1]87-0-14'!B117 -> AG1H | B131: ='[1]87-0-14'!D117 -> ARANDELA GROWER 1" | C131: ='[1]87-0-14'!E117 -> PROLL | D131: ='[1]87-0-14'!F117 -> ARANDELA GROWER | E131: ='[1]87-0-14'!G117*(1+$E$13) -> 21988.92
A132: ='[1]87-0-14'!B118 -> AG34H | B132: ='[1]87-0-14'!D118 -> ARANDELA GROWER 3/4" | C132: ='[1]87-0-14'!E118 -> PROLL | D132: ='[1]87-0-14'!F118 -> ARANDELA GROWER | E132: ='[1]87-0-14'!G118*(1+$E$13) -> 28847.6855
A133: ='[1]87-0-14'!B119 -> AG58H | B133: ='[1]87-0-14'!D119 -> ARANDELA GROWER 5/8" | C133: ='[1]87-0-14'!E119 -> PROLL | D133: ='[1]87-0-14'!F119 -> ARANDELA GROWER | E133: ='[1]87-0-14'!G119*(1+$E$13) -> 17586.5325
A134: ='[1]87-0-14'!B120 -> ASCPT | B134: ='[1]87-0-14'!D120 -> ARCO SIER EMP/CERRADA C/H | C134: ='[1]87-0-14'!E120 -> TOTH | D134: ='[1]87-0-14'!F120 -> ARCO EMP/CERRADA | E134: ='[1]87-0-14'!G120*(1+$E$13) -> 16828.412
A135: ='[1]87-0-14'!B121 -> ASF | B135: ='[1]87-0-14'!D121 -> ARCO SIERRA FIJO REFORZAD | C135: ='[1]87-0-14'!E121 -> TOTH | D135: ='[1]87-0-14'!F121 -> ARCO FIJO | E135: ='[1]87-0-14'!G121*(1+$E$13) -> 11370.614
A136: ='[1]87-0-14'!B122 -> AIBIM | B136: ='[1]87-0-14'!D122 -> ASIENT INOD "INYECT" BLAN | C136: ='[1]87-0-14'!E122 -> MTZ | D136: ='[1]87-0-14'!F122 -> ASIENTO INODORO | E136: ='[1]87-0-14'!G122*(1+$E$13) -> 10884.162
A137: ='[1]87-0-14'!B123 -> AACC0G | B137: ='[1]87-0-14'!D123 -> AZA ALGOD C/CABO N 0 | C137: ='[1]87-0-14'!E123 -> GHERARDI | D137: ='[1]87-0-14'!F123 -> AZADA | E137: ='[1]87-0-14'!G123*(1+$E$13) -> 52762.682
A138: ='[1]87-0-14'!B124 -> AACC1G | B138: ='[1]87-0-14'!D124 -> AZA ALGOD C/CABO N 1 | C138: ='[1]87-0-14'!E124 -> GHERARDI | D138: ='[1]87-0-14'!F124 -> AZADA | E138: ='[1]87-0-14'!G124*(1+$E$13) -> 53440.9
A139: ='[1]87-0-14'!B125 -> AACC2G | B139: ='[1]87-0-14'!D125 -> AZA ALGOD C/CABO N 2 | C139: ='[1]87-0-14'!E125 -> GHERARDI | D139: ='[1]87-0-14'!F125 -> AZADA | E139: ='[1]87-0-14'!G125*(1+$E$13) -> 54043.5245
A140: ='[1]87-0-14'!B126 -> ACCC0G | B140: ='[1]87-0-14'!D126 -> AZA CARPI C/CABO N 0 | C140: ='[1]87-0-14'!E126 -> GHERARDI | D140: ='[1]87-0-14'!F126 -> AZADA | E140: ='[1]87-0-14'!G126*(1+$E$13) -> 50821.059
A141: ='[1]87-0-14'!B127 -> ACCC1G | B141: ='[1]87-0-14'!D127 -> AZA CARPI C/CABO N 1 | C141: ='[1]87-0-14'!E127 -> GHERARDI | D141: ='[1]87-0-14'!F127 -> AZADA | E141: ='[1]87-0-14'!G127*(1+$E$13) -> 51462.0615
A142: ='[1]87-0-14'!B128 -> ACCC2G | B142: ='[1]87-0-14'!D128 -> AZA CARPI C/CABO N 2 | C142: ='[1]87-0-14'!E128 -> GHERARDI | D142: ='[1]87-0-14'!F128 -> AZADA | E142: ='[1]87-0-14'!G128*(1+$E$13) -> 52033.6085
A143: ='[1]87-0-14'!B129 -> AMCC2G | B143: ='[1]87-0-14'!D129 -> AZA MEND C/CAB 2" | C143: ='[1]87-0-14'!E129 -> GHERARDI | D143: ='[1]87-0-14'!F129 -> AZADA | E143: ='[1]87-0-14'!G129*(1+$E$13) -> 88285.489
A144: ='[1]87-0-14'!B130 -> AMCC212G | B144: ='[1]87-0-14'!D130 -> AZA MEND C/CAB 2"1/2 | C144: ='[1]87-0-14'!E130 -> GHERARDI | D144: ='[1]87-0-14'!F130 -> AZADA | E144: ='[1]87-0-14'!G130*(1+$E$13) -> 90051.1715
A145: ='[1]87-0-14'!B131 -> AMCC3G | B145: ='[1]87-0-14'!D131 -> AZA MEND C/CAB 3" | C145: ='[1]87-0-14'!E131 -> GHERARDI | D145: ='[1]87-0-14'!F131 -> AZADA | E145: ='[1]87-0-14'!G131*(1+$E$13) -> 92699.6255
A146: ='[1]87-0-14'!B132 -> AMCC312G | B146: ='[1]87-0-14'!D132 -> AZA MEND C/CAB 3"1/2 | C146: ='[1]87-0-14'!E132 -> GHERARDI | D146: ='[1]87-0-14'!F132 -> AZADA | E146: ='[1]87-0-14'!G132*(1+$E$13) -> 96231.068
A147: ='[1]87-0-14'!B133 -> AA0G | B147: ='[1]87-0-14'!D133 -> AZADA ALGODONER N 0 | C147: ='[1]87-0-14'!E133 -> GHERARDI | D147: ='[1]87-0-14'!F133 -> AZADA | E147: ='[1]87-0-14'!G133*(1+$E$13) -> 30202.556
A148: ='[1]87-0-14'!B134 -> AA1G | B148: ='[1]87-0-14'!D134 -> AZADA ALGODONER N 1 | C148: ='[1]87-0-14'!E134 -> GHERARDI | D148: ='[1]87-0-14'!F134 -> AZADA | E148: ='[1]87-0-14'!G134*(1+$E$13) -> 30821.9515
A149: ='[1]87-0-14'!B135 -> AA2G | B149: ='[1]87-0-14'!D135 -> AZADA ALGODONER N 2 | C149: ='[1]87-0-14'!E135 -> GHERARDI | D149: ='[1]87-0-14'!F135 -> AZADA | E149: ='[1]87-0-14'!G135*(1+$E$13) -> 31430.466
A150: ='[1]87-0-14'!B136 -> AC0G | B150: ='[1]87-0-14'!D136 -> AZADA CARPIR N 0 | C150: ='[1]87-0-14'!E136 -> GHERARDI | D150: ='[1]87-0-14'!F136 -> AZADA | E150: ='[1]87-0-14'!G136*(1+$E$13) -> 29084.6495
A151: ='[1]87-0-14'!B137 -> AC1G | B151: ='[1]87-0-14'!D137 -> AZADA CARPIR N 1 | C151: ='[1]87-0-14'!E137 -> GHERARDI | D151: ='[1]87-0-14'!F137 -> AZADA | E151: ='[1]87-0-14'!G137*(1+$E$13) -> 29660.5365
A152: ='[1]87-0-14'!B138 -> AC1F | B152: ='[1]87-0-14'!D138 -> AZADA CARPIR N 1 | C152: ='[1]87-0-14'!E138 -> FERCAS | D152: ='[1]87-0-14'!F138 -> AZADA CARPIR | E152: ='[1]87-0-14'!G138*(1+$E$13) -> 11582.468
A153: ='[1]87-0-14'!B139 -> AC2F | B153: ='[1]87-0-14'!D139 -> AZADA CARPIR N 2 | C153: ='[1]87-0-14'!E139 -> FERCAS | D153: ='[1]87-0-14'!F139 -> AZADA CARPIR | E153: ='[1]87-0-14'!G139*(1+$E$13) -> 12163.129
A154: ='[1]87-0-14'!B140 -> AC2G | B154: ='[1]87-0-14'!D140 -> AZADA CARPIR N 2 | C154: ='[1]87-0-14'!E140 -> GHERARDI | D154: ='[1]87-0-14'!F140 -> AZADA | E154: ='[1]87-0-14'!G140*(1+$E$13) -> 30269.6555
A155: ='[1]87-0-14'!B141 -> AC3F | B155: ='[1]87-0-14'!D141 -> AZADA CARPIR N 3 | C155: ='[1]87-0-14'!E141 -> FERCAS | D155: ='[1]87-0-14'!F141 -> AZADA CARPIR | E155: ='[1]87-0-14'!G141*(1+$E$13) -> 12835.4415
A156: ='[1]87-0-14'!B142 -> AM2G | B156: ='[1]87-0-14'!D142 -> AZADA MENDOCIN 2" | C156: ='[1]87-0-14'!E142 -> GHERARDI | D156: ='[1]87-0-14'!F142 -> AZADA | E156: ='[1]87-0-14'!G142*(1+$E$13) -> 68862.873
A157: ='[1]87-0-14'!B143 -> AM212G | B157: ='[1]87-0-14'!D143 -> AZADA MENDOCIN 2"1/2 | C157: ='[1]87-0-14'!E143 -> GHERARDI | D157: ='[1]87-0-14'!F143 -> AZADA | E157: ='[1]87-0-14'!G143*(1+$E$13) -> 70628.416
A158: ='[1]87-0-14'!B144 -> AM3G | B158: ='[1]87-0-14'!D144 -> AZADA MENDOCIN 3" | C158: ='[1]87-0-14'!E144 -> GHERARDI | D158: ='[1]87-0-14'!F144 -> AZADA | E158: ='[1]87-0-14'!G144*(1+$E$13) -> 73276.932
A159: ='[1]87-0-14'!B145 -> AM312G | B159: ='[1]87-0-14'!D145 -> AZADA MENDOCIN 3"1/2 | C159: ='[1]87-0-14'!E145 -> GHERARDI | D159: ='[1]87-0-14'!F145 -> AZADA | E159: ='[1]87-0-14'!G145*(1+$E$13) -> 76808.4985
A160: ='[1]87-0-14'!B146 -> BEE | B160: ='[1]87-0-14'!D146 -> BALDE ALBAN PLAST PREMIUM | C160: ='[1]87-0-14'!E146 -> HERNANPLAS | D160: ='[1]87-0-14'!F146 -> BALDE | E160: ='[1]87-0-14'!G146*(1+$E$13) -> 3138.099
A161: ='[1]87-0-14'!B147 -> 6600100D | B161: ='[1]87-0-14'!D147 -> BAND PAPEL 120X6600 100 | C161: ='[1]87-0-14'!E147 -> DOBLE A | D161: ='[1]87-0-14'!F147 -> BANDA | E161: ='[1]87-0-14'!G147*(1+$E$13) -> 64872.429
A162: ='[1]87-0-14'!B148 -> 660040D | B162: ='[1]87-0-14'!D148 -> BAND PAPEL 120X6600 40 | C162: ='[1]87-0-14'!E148 -> DOBLE A | D162: ='[1]87-0-14'!F148 -> BANDA | E162: ='[1]87-0-14'!G148*(1+$E$13) -> 91158.011
A163: ='[1]87-0-14'!B149 -> B7545740 | B163: ='[1]87-0-14'!D149 -> BANDA P/MADERA 75x457 40 | C163: ='[1]87-0-14'!E149 -> DOBLE A | D163: ='[1]87-0-14'!F149 -> BANDA | E163: ='[1]87-0-14'!G149*(1+$E$13) -> 7372.73
A164: ='[1]87-0-14'!B150 -> B7545760 | B164: ='[1]87-0-14'!D150 -> BANDA P/MADERA 75x457 60 | C164: ='[1]87-0-14'!E150 -> DOBLE A | D164: ='[1]87-0-14'!F150 -> BANDA | E164: ='[1]87-0-14'!G150*(1+$E$13) -> 6543.325
A165: ='[1]87-0-14'!B151 -> B7545780 | B165: ='[1]87-0-14'!D151 -> BANDA P/MADERA 75x457 80 | C165: ='[1]87-0-14'!E151 -> DOBLE A | D165: ='[1]87-0-14'!F151 -> BANDA | E165: ='[1]87-0-14'!G151*(1+$E$13) -> 6054.61
A166: ='[1]87-0-14'!B152 -> B7553340 | B166: ='[1]87-0-14'!D152 -> BANDA P/MADERA 75x533 40 | C166: ='[1]87-0-14'!E152 -> DOBLE A | D166: ='[1]87-0-14'!F152 -> BANDA | E166: ='[1]87-0-14'!G152*(1+$E$13) -> 8344.363
A167: ='[1]87-0-14'!B153 -> B7553360 | B167: ='[1]87-0-14'!D153 -> BANDA P/MADERA 75x533 60 | C167: ='[1]87-0-14'!E153 -> DOBLE A | D167: ='[1]87-0-14'!F153 -> BANDA | E167: ='[1]87-0-14'!G153*(1+$E$13) -> 7327.966
A168: ='[1]87-0-14'!B154 -> B7553380 | B168: ='[1]87-0-14'!D154 -> BANDA P/MADERA 75x533 80 | C168: ='[1]87-0-14'!E154 -> DOBLE A | D168: ='[1]87-0-14'!F154 -> BANDA | E168: ='[1]87-0-14'!G154*(1+$E$13) -> 6727.2635
A169: ='[1]87-0-14'!B155 -> B7561040 | B169: ='[1]87-0-14'!D155 -> BANDA P/MADERA 75x610 40 | C169: ='[1]87-0-14'!E155 -> DOBLE A | D169: ='[1]87-0-14'!F155 -> BANDA | E169: ='[1]87-0-14'!G155*(1+$E$13) -> 9263.3735
A170: ='[1]87-0-14'!B156 -> B7561060 | B170: ='[1]87-0-14'!D156 -> BANDA P/MADERA 75x610 60 | C170: ='[1]87-0-14'!E156 -> DOBLE A | D170: ='[1]87-0-14'!F156 -> BANDA | E170: ='[1]87-0-14'!G156*(1+$E$13) -> 8081.9635
A171: ='[1]87-0-14'!B157 -> B7561080 | B171: ='[1]87-0-14'!D157 -> BANDA P/MADERA 75x610 80 | C171: ='[1]87-0-14'!E157 -> DOBLE A | D171: ='[1]87-0-14'!F157 -> BANDA | E171: ='[1]87-0-14'!G157*(1+$E$13) -> 7372.73
A172: ='[1]87-0-14'!B158 -> BPGC | B172: ='[1]87-0-14'!D158 -> BANDEJ PINTOR GRANDE | C172: ='[1]87-0-14'!E158 -> CRECCHIO | D172: ='[1]87-0-14'!F158 -> BANDEJA PINTOR | E172: ='[1]87-0-14'!G158*(1+$E$13) -> 2075.0315
A173: ='[1]87-0-14'!B159 -> BCM | B173: ='[1]87-0-14'!D159 -> BARBIJO COMUN | C173: ='[1]87-0-14'!E159 -> MASKE | D173: ='[1]87-0-14'!F159 -> BARBIJO | E173: ='[1]87-0-14'!G159*(1+$E$13) -> 59.52
A174: ='[1]87-0-14'!B160 -> BQM | B174: ='[1]87-0-14'!D160 -> BARBIJO QUIRURGICO | C174: ='[1]87-0-14'!E160 -> MASKE | D174: ='[1]87-0-14'!F160 -> BARBIJO | E174: ='[1]87-0-14'!G160*(1+$E$13) -> 71.0055
A175: ='[1]87-0-14'!B161 -> BATK | B175: ='[1]87-0-14'!D161 -> BARNI AEROS Transpar | C175: ='[1]87-0-14'!E161 -> KUWAIT | D175: ='[1]87-0-14'!F161 -> BARNIZ AEROSOL | E175: ='[1]87-0-14'!G161*(1+$E$13) -> 5448.498
A176: ='[1]87-0-14'!B162 -> BT440K | B176: ='[1]87-0-14'!D162 -> BARNI TRANSPAR "440" | C176: ='[1]87-0-14'!E162 -> KUWAIT | D176: ='[1]87-0-14'!F162 -> BARNIZ AEROSOL | E176: ='[1]87-0-14'!G162*(1+$E$13) -> 7939.9835
A177: ='[1]87-0-14'!B163 -> BAMK | B177: ='[1]87-0-14'!D163 -> BARNIZ AEROSOL Mate | C177: ='[1]87-0-14'!E163 -> KUWAIT | D177: ='[1]87-0-14'!F163 -> BARNIZ AEROSOL | E177: ='[1]87-0-14'!G163*(1+$E$13) -> 5448.498
A178: ='[1]87-0-14'!B164 -> BM20P | B178: ='[1]87-0-14'!D164 -> BARNIZ MARINO 20 lts | C178: ='[1]87-0-14'!E164 -> PREMIER | D178: ='[1]87-0-14'!F164 -> BARNIZ | E178: ='[1]87-0-14'!G164*(1+$E$13) -> 292365.433
A179: ='[1]87-0-14'!B165 -> BM200P | B179: ='[1]87-0-14'!D165 -> BARNIZ MARINO 200 lts | C179: ='[1]87-0-14'!E165 -> PREMIER | D179: ='[1]87-0-14'!F165 -> BARNIZ | E179: ='[1]87-0-14'!G165*(1+$E$13) -> 2923654.299
A180: ='[1]87-0-14'!B166 -> BM1P | B180: ='[1]87-0-14'!D166 -> BARNIZ MARINO 1 lt | C180: ='[1]87-0-14'!E166 -> PREMIER | D180: ='[1]87-0-14'!F166 -> BARNIZ | E180: ='[1]87-0-14'!G166*(1+$E$13) -> 16473.5085
A181: ='[1]87-0-14'!B167 -> BM12P | B181: ='[1]87-0-14'!D167 -> BARNIZ MARINO 1/2 lt | C181: ='[1]87-0-14'!E167 -> PREMIER | D181: ='[1]87-0-14'!F167 -> BARNIZ | E181: ='[1]87-0-14'!G167*(1+$E$13) -> 9572.676
A182: ='[1]87-0-14'!B168 -> BM4P | B182: ='[1]87-0-14'!D168 -> BARNIZ MARINO 4 lt | C182: ='[1]87-0-14'!E168 -> PREMIER | D182: ='[1]87-0-14'!F168 -> BARNIZ | E182: ='[1]87-0-14'!G168*(1+$E$13) -> 62011.1445
A183: ='[1]87-0-14'!B169 -> BS20P | B183: ='[1]87-0-14'!D169 -> BARNIZ SINTETICO 20 ltS | C183: ='[1]87-0-14'!E169 -> PREMIER | D183: ='[1]87-0-14'!F169 -> BARNIZ | E183: ='[1]87-0-14'!G169*(1+$E$13) -> 268271.1325
A184: ='[1]87-0-14'!B170 -> BS200P | B184: ='[1]87-0-14'!D170 -> BARNIZ SINTETICO 200 ltS | C184: ='[1]87-0-14'!E170 -> PREMIER | D184: ='[1]87-0-14'!F170 -> BARNIZ | E184: ='[1]87-0-14'!G170*(1+$E$13) -> 2682711.294
A185: ='[1]87-0-14'!B171 -> BS1P | B185: ='[1]87-0-14'!D171 -> BARNIZ SINTETICO 1 lt | C185: ='[1]87-0-14'!E171 -> PREMIER | D185: ='[1]87-0-14'!F171 -> BARNIZ | E185: ='[1]87-0-14'!G171*(1+$E$13) -> 15287.9135
A186: ='[1]87-0-14'!B172 -> BS12P | B186: ='[1]87-0-14'!D172 -> BARNIZ SINTETICO 1/2 lt | C186: ='[1]87-0-14'!E172 -> PREMIER | D186: ='[1]87-0-14'!F172 -> BARNIZ | E186: ='[1]87-0-14'!G172*(1+$E$13) -> 8966.3935
A187: ='[1]87-0-14'!B173 -> BS14P | B187: ='[1]87-0-14'!D173 -> BARNIZ SINTETICO 1/4 lt | C187: ='[1]87-0-14'!E173 -> PREMIER | D187: ='[1]87-0-14'!F173 -> BARNIZ | E187: ='[1]87-0-14'!G173*(1+$E$13) -> 5807.416
A188: ='[1]87-0-14'!B174 -> BS4P | B188: ='[1]87-0-14'!D174 -> BARNIZ SINTETICO 4 lt | C188: ='[1]87-0-14'!E174 -> PREMIER | D188: ='[1]87-0-14'!F174 -> BARNIZ | E188: ='[1]87-0-14'!G174*(1+$E$13) -> 57192.2875
A189: ='[1]87-0-14'!B175 -> BELBA | B189: ='[1]87-0-14'!D175 -> BARRA EXTEN *LUJO* BLANCO | C189: ='[1]87-0-14'!E175 -> ALEX | D189: ='[1]87-0-14'!F175 -> BARRAL EXTE. LUJO | E189: ='[1]87-0-14'!G175*(1+$E$13) -> 19268.2205
A190: ='[1]87-0-14'!B176 -> BCCLA | B190: ='[1]87-0-14'!D176 -> BARRAL CORTO 15cm C/LLAVE | C190: ='[1]87-0-14'!E176 -> VITAL GAS | D190: ='[1]87-0-14'!F176 -> BARRAL | E190: ='[1]87-0-14'!G176*(1+$E$13) -> 34013.8975
A191: ='[1]87-0-14'!B177 -> BCSLA | B191: ='[1]87-0-14'!D177 -> BARRAL CORTO 15cm S/LLAVE | C191: ='[1]87-0-14'!E177 -> VITAL GAS | D191: ='[1]87-0-14'!F177 -> BARRAL | E191: ='[1]87-0-14'!G177*(1+$E$13) -> 13408.3835
A192: ='[1]87-0-14'!B178 -> BCCA | B192: ='[1]87-0-14'!D178 -> BARRAL CURVO CORT | C192: ='[1]87-0-14'!E178 -> ALEX | D192: ='[1]87-0-14'!F178 -> BARRAL | E192: ='[1]87-0-14'!G178*(1+$E$13) -> 13025.239
A193: ='[1]87-0-14'!B179 -> BCLA | B193: ='[1]87-0-14'!D179 -> BARRAL CURVO LARG | C193: ='[1]87-0-14'!E179 -> ALEX | D193: ='[1]87-0-14'!F179 -> BARRAL | E193: ='[1]87-0-14'!G179*(1+$E$13) -> 15650.381
A194: ='[1]87-0-14'!B180 -> BD3A | B194: ='[1]87-0-14'!D180 -> BARRAL DOBLE 3 Kg. | C194: ='[1]87-0-14'!E180 -> VITAL GAS | D194: ='[1]87-0-14'!F180 -> BARRAL | E194: ='[1]87-0-14'!G180*(1+$E$13) -> 60533.266
A195: ='[1]87-0-14'!B181 -> BD10A | B195: ='[1]87-0-14'!D181 -> BARRAL DOBLE 10 Kg. | C195: ='[1]87-0-14'!E181 -> VITAL GAS | D195: ='[1]87-0-14'!F181 -> BARRAL | E195: ='[1]87-0-14'!G181*(1+$E$13) -> 67631.274
A196: ='[1]87-0-14'!B182 -> BEBA | B196: ='[1]87-0-14'!D182 -> BARRAL EXTENS BLANCO | C196: ='[1]87-0-14'!E182 -> ALEX | D196: ='[1]87-0-14'!F182 -> BARRAL EXT. COLOR | E196: ='[1]87-0-14'!G182*(1+$E$13) -> 14642.974
A197: ='[1]87-0-14'!B183 -> BEBEA | B197: ='[1]87-0-14'!D183 -> BARRAL EXTENSI BEIGE | C197: ='[1]87-0-14'!E183 -> ALEX | D197: ='[1]87-0-14'!F183 -> BARRAL EXT. COLOR | E197: ='[1]87-0-14'!G183*(1+$E$13) -> 14642.974
A198: ='[1]87-0-14'!B184 -> BEA | B198: ='[1]87-0-14'!D184 -> BARRAL EXTENSIBLE | C198: ='[1]87-0-14'!E184 -> ALEX | D198: ='[1]87-0-14'!F184 -> BARRAL | E198: ='[1]87-0-14'!G184*(1+$E$13) -> 10159.878
A199: ='[1]87-0-14'!B185 -> BFCLA | B199: ='[1]87-0-14'!D185 -> BARRAL FAROL 1 mt C/LLAVE | C199: ='[1]87-0-14'!E185 -> VITAL GAS | D199: ='[1]87-0-14'!F185 -> BARRAL | E199: ='[1]87-0-14'!G185*(1+$E$13) -> 43203.1345
A200: ='[1]87-0-14'!B186 -> BFSLA | B200: ='[1]87-0-14'!D186 -> BARRAL FAROL 1 mt S/LLAVE | C200: ='[1]87-0-14'!E186 -> VITAL GAS | D200: ='[1]87-0-14'!F186 -> BARRAL | E200: ='[1]87-0-14'!G186*(1+$E$13) -> 17943.9315
A201: ='[1]87-0-14'!B187 -> B160A | B201: ='[1]87-0-14'!D187 -> BARRAL RECTO 1,60 | C201: ='[1]87-0-14'!E187 -> ALEX | D201: ='[1]87-0-14'!F187 -> BARRAL | E201: ='[1]87-0-14'!G187*(1+$E$13) -> 8539.694
A202: ='[1]87-0-14'!B188 -> B180A | B202: ='[1]87-0-14'!D188 -> BARRAL RECTO 1,80 | C202: ='[1]87-0-14'!E188 -> ALEX | D202: ='[1]87-0-14'!F188 -> BARRAL | E202: ='[1]87-0-14'!G188*(1+$E$13) -> 9980.946
A203: ='[1]87-0-14'!B189 -> B200A | B203: ='[1]87-0-14'!D189 -> BARRAL RECTO 2,00 | C203: ='[1]87-0-14'!E189 -> ALEX | D203: ='[1]87-0-14'!F189 -> BARRAL | E203: ='[1]87-0-14'!G189*(1+$E$13) -> 11130.5345
... 4524 more rows
